Workbook

Sheet Лист1
K2: =#REF! -> 
G3: =IF(F3="","",IF(AND(F3=#REF!,#REF!<>#REF!),"в",IF(AND(#REF!=#REF!,F3=#REF!,#REF!<>#REF!),"с",IF(AND(F3=#REF!,#REF!=#REF!,#REF!=#REF!),"Ошибка","а")))) -> 
G5: =IF(F5="","",IF(AND(F5=F4,F4<>F3),"в",IF(AND(F4=F3,F5=F4,F3<>#REF!),"с",IF(AND(F5=F4,F4=F3,F3=#REF!),"Ошибка","а")))) -> 
A6: М1 | B6: Яблоко | C6: 1 | E6: 1000 | F6: =IF(C6="",IF(C5="",C4,C5),C6) -> 1 | G6: =IF(F6="","",IF(AND(F6=F5,F5<>F4),"в",IF(AND(F5=F4,F6=F5,F4<>F3),"с",IF(AND(F6=F5,F5=F4,F4=F3),"Ошибка","а")))) -> а | I6: 1020 | K6: 0.04 | M6: 0.2
G7: =IF(F7="","",IF(AND(F7=F6,F6<>F5),"в",IF(AND(F6=F5,F7=F6,F5<>F4),"с",IF(AND(F7=F6,F6=F5,F5=F4),"Ошибка","а")))) -> 
G8: =IF(F8="","",IF(AND(F8=F7,F7<>F6),"в",IF(AND(F7=F6,F8=F7,F6<>F5),"с",IF(AND(F8=F7,F7=F6,F6=F5),"Ошибка","а")))) -> 
G9: =IF(F9="","",IF(AND(F9=F8,F8<>F7),"в",IF(AND(F8=F7,F9=F8,F7<>F6),"с",IF(AND(F9=F8,F8=F7,F7=F6),"Ошибка","а")))) -> 
A10: М2 | B10: Груша | C10: 1 | E10: 2000 | F10: =IF(C10="",IF(C9="",C8,C9),C10) -> 1 | G10: а | I10: 1030 | K10: 0.05 | M10: 0.3
A11: М3 | E11: 3000 | F11: 1 | G11: в | I11: 1040 | K11: 0.06 | M11: 0.4
A12: М4 | E12: 4000 | F12: 1 | G12: с | I12: 1050 | K12: 0.07 | M12: 0.5
A13: М5 | B13: Лимон | C13: 2 | E13: 5000 | F13: 2 | G13: а | I13: 1060 | K13: 0.08 | M13: 0.6
A14: М6 | E14: 6000 | F14: 2 | G14: в | I14: 1070 | K14: 0.09 | M14: 0.7
A15: М7 | E15: 7000 | F15: 2 | G15: с | I15: 1080 | K15: 0.1 | M15: 0.8
A16: М8 | B16: Киви | C16: 3 | E16: 8000 | F16: =IF(C16="",IF(#REF!="",#REF!,#REF!),C16) -> 3 | G16: а | I16: 1090 | K16: 0.11 | M16: 0.9
A17: М9 | E17: 9000 | F17: =IF(C17="",IF(C16="",#REF!,C16),C17) -> 3 | G17: в | I17: 1100 | K17: 0.12 | M17: 0.1
A18: М10 | B18: Вишня | C18: 4 | E18: 10000 | F18: =IF(C18="",IF(C17="",C16,C17),C18) -> 4 | G18: а | I18: 1110 | K18: 0.13 | M18: 0.11
A19: М11 | B19: Груша | C19: 5 | E19: 2000 | F19: =IF(C19="",IF(C18="",C17,C18),C19) -> 5 | G19: =IF(F19="","",IF(AND(F19=F18,F18<>F17),"в",IF(AND(F18=F17,F19=F18,F17<>F16),"с",IF(AND(F19=F18,F18=F17,F17=F16),"Ошибка","а")))) -> а | I19: 1120 | K19: 0.14 | M19: -0.42
A20: М12 | E20: 3000 | F20: 5 | G20: в | I20: 1130 | K20: 0.15 | M20: -0.815
A21: М13 | E21: 4000 | F21: 5 | G21: с | I21: 1140 | K21: 0.16 | M21: -1.21
A22: М14 | B22: Лимон | C22: 6 | E22: 5000 | F22: 6 | G22: а | I22: 1150 | K22: 0.17 | M22: -1.605
A23: М15 | E23: 6000 | F23: 6 | G23: в | I23: 1160 | K23: 0.18 | M23: -2
A24: М16 | E24: 7000 | F24: 6 | G24: с | I24: 1170 | K24: 0.19 | M24: -2.395

Sheet Лист2

Sheet Лист3
A2: =Лист1!A:A -> 0 | B2: =Лист1!B:B -> 0 | C2: =Лист1!F:F -> 0 | D2: =Лист1!E:E -> 0 | E2: =Лист1!F:F -> 0 | F2: =Лист1!G:G -> 0 | G2: =Лист1!K:K ->  | H2: =Лист1!M:M -> 0 | I2: =Лист1!I2 -> 0 | J2: =IF(I:I=0,"",I:I) ->  | K2: =IF(A:A=0,"",A:A) ->  | S2: =IF(ISERR(SEARCH(".",$M2)),"",L2) ->  | T2: =IF(ISERR(SEARCH(".",$M2)),"",M2) ->  | U2: =IF(ISERR(SEARCH(".",$M2)),"",P2) ->  | V2: =IF(ISERR(SEARCH(".",$M2)),"",Q2) ->  | W2: =IF(ISERR(SEARCH(".",$M2)),"",R2) ->  | X2: =IF(AND(V3<>"",V2=""),SUM(V2:INDEX(V$3:V$6736,MIN(IF(V3:$V$6736="",ROW(V3:$V$6736)))-1)),"") ->  | Y2: =IF(AND(W3<>"",W2=""),SUM(W2:INDEX(W$3:W$6736,MIN(IF(W3:$W$6736="",ROW(W3:$W$6736)))-1)),"") ->  | Z2: =IFERROR(IF(ISERR(SEARCH(".",$M2)),Q2+(P2="с")*N(X2),""),"") ->  | AA2: =IFERROR(IF(ISERR(SEARCH(".",$M2)),R2+(P2="с")*N(Y2),""),"") ->  | AB2: =IF(ISERR(SEARCH(".",$M2)),L2,"") ->  | AC2: =IF(ISERR(SEARCH(".",$M2)),M2,"") ->  | AD2: =CONCATENATE($AB:$AB,$AC:$AC) ->  | AE2: =IF(P2<>"С",IF((TRIM(LEFT(SUBSTITUTE(M2,".",REPT(" ",15)),15))=(TRIM(LEFT(SUBSTITUTE(M1,".",REPT(" ",15)),15))))*ISNUMBER(FIND(".",M2)),"",K2),K2& IF((TRIM(LEFT(SUBSTITUTE(M3,".",REPT(" ",15)),15))=M2)*(COUNTIF(K2:K3,K3)<2)*(COUNTIF(P2:P3,"с")=1),","&K3,"")& IF((TRIM(LEFT(SUBSTITUTE(M4,".",REPT(" ",15)),15))=M2)*(COUNTIF(K2:K4,K4)<2)*(COUNTIF(P2:P4,"с")=1),","&K4,"")& IF((TRIM(LEFT(SUBSTITUTE(M5,".",REPT(" ",15)),15))=M2)*(COUNTIF(K2:K5,K5)<2)*(COUNTIF(P2:P5,"с")=1),","&K5,"")& IF((TRIM(LEFT(SUBSTITUTE(M6,".",REPT(" ",15)),15))=M2)*(COUNTIF(K2:K6,K6)<2)*(COUNTIF(P2:P6,"с")=1),","&K6,"")& IF((TRIM(LEFT(SUBSTITUTE(M7,".",REPT(" ",15)),15))=M2)*(COUNTIF(K2:K7,K7)<2)*(COUNTIF(P2:P7,"с")=1),","&K7,"")& IF((TRIM(LEFT(SUBSTITUTE(M8,".",REPT(" ",15)),15))=M2)*(COUNTIF(K2:K8,K8)<2)*(COUNTIF(P2:P8,"с")=1),","&K8,"")& IF((TRIM(LEFT(SUBSTITUTE(M9,".",REPT(" ",15)),15))=M2)*(COUNTIF(K2:K9,K9)<2)*(COUNTIF(P2:P9,"с")=1),","&K9,"")) ->  | AF2: =IF(ISERR(SUBSTITUTE($AD2,".",MID(7/8,2,1))^1),AD2,"") ->  | AG2: =IF(ISERR(SEARCH(".",$O2)),N2,"") ->  | AJ2: =CONCATENATE($AG:$AG,$AH:$AH,$AI:$AI) ->  | AK2: =$Z2 ->  | AL2: =$AA2 ->  | AM2: =IFERROR(IF(ISERR(SEARCH(".",$M2)),J2+(P2="с")*N(0),""),"") ->  | AN2: =IF(AE2<>"",AN1+1,AN1) -> 0 | AO2: =MATCH(ROW(AO1),Лист3!AN:AN,) -> 6
A3: =Лист1!A:A -> 0 | B3: =Лист1!B:B -> 0 | C3: =Лист1!F:F -> 0 | D3: =Лист1!E:E -> 0 | E3: =Лист1!F:F -> 0 | F3: =Лист1!G:G ->  | G3: =Лист1!K:K -> 0 | H3: =Лист1!M:M -> 0 | I3: =Лист1!I3 -> 0 | S3: =IF(ISERR(SEARCH(".",$M3)),"",L3) ->  | T3: =IF(ISERR(SEARCH(".",$M3)),"",M3) ->  | U3: =IF(ISERR(SEARCH(".",$M3)),"",P3) ->  | V3: =IF(ISERR(SEARCH(".",$M3)),"",Q3) ->  | W3: =IF(ISERR(SEARCH(".",$M3)),"",R3) ->  | X3: =IF(AND(V4<>"",V3=""),SUM(V3:INDEX(V$3:V$6736,MIN(IF(V4:$V$6736="",ROW(V4:$V$6736)))-1)),"") ->  | Y3: =IF(AND(W4<>"",W3=""),SUM(W3:INDEX(W$3:W$6736,MIN(IF(W4:$W$6736="",ROW(W4:$W$6736)))-1)),"") ->  | AE3: =IF(P3<>"С",IF((TRIM(LEFT(SUBSTITUTE(M3,".",REPT(" ",15)),15))=(TRIM(LEFT(SUBSTITUTE(M2,".",REPT(" ",15)),15))))*ISNUMBER(FIND(".",M3)),"",K3),K3& IF((TRIM(LEFT(SUBSTITUTE(M4,".",REPT(" ",15)),15))=M3)*(COUNTIF(K3:K4,K4)<2)*(COUNTIF(P3:P4,"с")=1),","&K4,"")& IF((TRIM(LEFT(SUBSTITUTE(M5,".",REPT(" ",15)),15))=M3)*(COUNTIF(K3:K5,K5)<2)*(COUNTIF(P3:P5,"с")=1),","&K5,"")& IF((TRIM(LEFT(SUBSTITUTE(M6,".",REPT(" ",15)),15))=M3)*(COUNTIF(K3:K6,K6)<2)*(COUNTIF(P3:P6,"с")=1),","&K6,"")& IF((TRIM(LEFT(SUBSTITUTE(M7,".",REPT(" ",15)),15))=M3)*(COUNTIF(K3:K7,K7)<2)*(COUNTIF(P3:P7,"с")=1),","&K7,"")& IF((TRIM(LEFT(SUBSTITUTE(M8,".",REPT(" ",15)),15))=M3)*(COUNTIF(K3:K8,K8)<2)*(COUNTIF(P3:P8,"с")=1),","&K8,"")& IF((TRIM(LEFT(SUBSTITUTE(M9,".",REPT(" ",15)),15))=M3)*(COUNTIF(K3:K9,K9)<2)*(COUNTIF(P3:P9,"с")=1),","&K9,"")& IF((TRIM(LEFT(SUBSTITUTE(M10,".",REPT(" ",15)),15))=M3)*(COUNTIF(K3:K10,K10)<2)*(COUNTIF(P3:P10,"с")=1),","&K10,"")) ->  | AF3: =IF(ISERR(SUBSTITUTE($AD3,".",MID(7/8,2,1))^1),AD3,"") ->  | AK3: =$Z3 ->  | AL3: =$AA3 ->  | AN3: =IF(AE3<>"",AN2+1,AN2) -> 0 | AO3: =MATCH(ROW(AO2),Лист3!AN:AN,) -> 10
A4: =Лист1!A:A -> 0 | B4: =Лист1!B:B -> 0 | C4: =Лист1!F:F -> 0 | D4: =Лист1!E:E -> 0 | E4: =Лист1!F:F -> 0 | F4: =Лист1!G:G -> 0 | G4: =Лист1!K:K -> 0 | H4: =Лист1!M:M -> 0 | I4: =Лист1!I4 -> 0 | X4: =IF(AND(V5<>"",V4=""),SUM(V4:INDEX(V$3:V$6736,MIN(IF(V5:$V$6736="",ROW(V5:$V$6736)))-1)),"") ->  | Y4: =IF(AND(W5<>"",W4=""),SUM(W4:INDEX(W$3:W$6736,MIN(IF(W5:$W$6736="",ROW(W5:$W$6736)))-1)),"") ->  | AE4: =IF(P4<>"С",IF((TRIM(LEFT(SUBSTITUTE(M4,".",REPT(" ",15)),15))=(TRIM(LEFT(SUBSTITUTE(M3,".",REPT(" ",15)),15))))*ISNUMBER(FIND(".",M4)),"",K4),K4& IF((TRIM(LEFT(SUBSTITUTE(M5,".",REPT(" ",15)),15))=M4)*(COUNTIF(K4:K5,K5)<2)*(COUNTIF(P4:P5,"с")=1),","&K5,"")& IF((TRIM(LEFT(SUBSTITUTE(M6,".",REPT(" ",15)),15))=M4)*(COUNTIF(K4:K6,K6)<2)*(COUNTIF(P4:P6,"с")=1),","&K6,"")& IF((TRIM(LEFT(SUBSTITUTE(M7,".",REPT(" ",15)),15))=M4)*(COUNTIF(K4:K7,K7)<2)*(COUNTIF(P4:P7,"с")=1),","&K7,"")& IF((TRIM(LEFT(SUBSTITUTE(M8,".",REPT(" ",15)),15))=M4)*(COUNTIF(K4:K8,K8)<2)*(COUNTIF(P4:P8,"с")=1),","&K8,"")& IF((TRIM(LEFT(SUBSTITUTE(M9,".",REPT(" ",15)),15))=M4)*(COUNTIF(K4:K9,K9)<2)*(COUNTIF(P4:P9,"с")=1),","&K9,"")& IF((TRIM(LEFT(SUBSTITUTE(M10,".",REPT(" ",15)),15))=M4)*(COUNTIF(K4:K10,K10)<2)*(COUNTIF(P4:P10,"с")=1),","&K10,"")& IF((TRIM(LEFT(SUBSTITUTE(M11,".",REPT(" ",15)),15))=M4)*(COUNTIF(K4:K11,K11)<2)*(COUNTIF(P4:P11,"с")=1),","&K11,"")) ->  | AF4: =IF(ISERR(SUBSTITUTE($AD4,".",MID(7/8,2,1))^1),AD4,"") ->  | AG4: =IF(ISERR(SEARCH(".",$O4)),N4,"") ->  | AH4: =IF(ISERR(SEARCH(".",$O4)),O4,"") ->  | AI4: =IF(ISERR(SEARCH(".",$O4)),P4,"") ->  | AN4: =IF(AE4<>"",AN3+1,AN3) -> 0 | AO4: =MATCH(ROW(AO3),Лист3!AN:AN,) -> 11
A5: =Лист1!A:A -> 0 | B5: =Лист1!B:B -> 0 | C5: =Лист1!F:F -> 0 | D5: =Лист1!E:E -> 0 | E5: =Лист1!F:F -> 0 | F5: =Лист1!G:G ->  | G5: =Лист1!K:K -> 0 | H5: =Лист1!M:M -> 0 | I5: =Лист1!I5 -> 0 | X5: =IF(AND(V6<>"",V5=""),SUM(V5:INDEX(V$3:V$6736,MIN(IF(V6:$V$6736="",ROW(V6:$V$6736)))-1)),"") ->  | Y5: =IF(AND(W6<>"",W5=""),SUM(W5:INDEX(W$3:W$6736,MIN(IF(W6:$W$6736="",ROW(W6:$W$6736)))-1)),"") ->  | AN5: 0 | AO5: =MATCH(ROW(AO4),Лист3!AN:AN,) -> 12
A6: =Лист1!A:A -> М1 | B6: =Лист1!B:B -> Яблоко | C6: =Лист1!F:F -> 1 | D6: =Лист1!E:E -> 1000 | E6: =Лист1!F:F -> 1 | F6: =Лист1!G:G -> а | G6: =Лист1!K:K -> 0.04 | H6: =Лист1!M:M -> 0.2 | I6: =Лист1!I6 -> 1020 | J6: 1020 | K6: М1 | L6: Яблоко | M6: 1 | N6: 1000 | O6: 1 | P6: а | Q6: 0.04 | R6: 0.2 | X6: =IF(AND(V7<>"",V6=""),SUM(V6:INDEX(V$3:V$6736,MIN(IF(V7:$V$6736="",ROW(V7:$V$6736)))-1)),"") ->  | Y6: =IF(AND(W7<>"",W6=""),SUM(W6:INDEX(W$3:W$6736,MIN(IF(W7:$W$6736="",ROW(W7:$W$6736)))-1)),"") ->  | Z6: 0.04 | AA6: 0.2 | AB6: Яблоко | AC6: 1 | AD6: Яблоко1 | AE6: М1 | AF6: Яблоко1 | AG6: 1000 | AH6: 1 | AI6: а | AJ6: 10001а | AK6: 0.04 | AL6: 0.2 | AM6: 1020 | AN6: 1 | AO6: =MATCH(ROW(AO5),Лист3!AN:AN,) -> 13
A7: =Лист1!A:A -> 0 | B7: =Лист1!B:B -> 0 | C7: =Лист1!F:F -> 0 | D7: =Лист1!E:E -> 0 | E7: =Лист1!F:F -> 0 | F7: =Лист1!G:G ->  | G7: =Лист1!K:K -> 0 | H7: =Лист1!M:M -> 0 | I7: =Лист1!I7 -> 0 | X7: =IF(AND(V8<>"",V7=""),SUM(V7:INDEX(V$3:V$6736,MIN(IF(V8:$V$6736="",ROW(V8:$V$6736)))-1)),"") ->  | Y7: =IF(AND(W8<>"",W7=""),SUM(W7:INDEX(W$3:W$6736,MIN(IF(W8:$W$6736="",ROW(W8:$W$6736)))-1)),"") ->  | AN7: 1 | AO7: =MATCH(ROW(AO6),Лист3!AN:AN,) -> 14
A8: =Лист1!A:A -> 0 | B8: =Лист1!B:B -> 0 | C8: =Лист1!F:F -> 0 | D8: =Лист1!E:E -> 0 | E8: =Лист1!F:F -> 0 | F8: =Лист1!G:G ->  | G8: =Лист1!K:K -> 0 | H8: =Лист1!M:M -> 0 | I8: =Лист1!I8 -> 0 | K8: =IF($A:$A=0,"",$A:$A) ->  | L8: =IF(B:B=0,"",B:B) ->  | M8: =IF(C:C=0,"",C:C) ->  | N8: =IF(D:D=0,"",D:D) ->  | O8: =IF(E:E=0,"",E:E) ->  | P8: =IF(F:F=0,"",F:F) ->  | Q8: =IF(G:G=0,"",G:G) ->  | R8: =IF(H:H=0,"",H:H) ->  | X8: =IF(AND(V9<>"",V8=""),SUM(V8:INDEX(V$3:V$6736,MIN(IF(V9:$V$6736="",ROW(V9:$V$6736)))-1)),"") ->  | Y8: =IF(AND(W9<>"",W8=""),SUM(W8:INDEX(W$3:W$6736,MIN(IF(W9:$W$6736="",ROW(W9:$W$6736)))-1)),"") ->  | AN8: 1 | AO8: =MATCH(ROW(AO7),Лист3!AN:AN,) -> 15
A9: =Лист1!A:A -> 0 | B9: =Лист1!B:B -> 0 | C9: =Лист1!F:F -> 0 | D9: =Лист1!E:E -> 0 | E9: =Лист1!F:F -> 0 | F9: =Лист1!G:G ->  | G9: =Лист1!K:K -> 0 | H9: =Лист1!M:M -> 0 | I9: =Лист1!I9 -> 0 | X9: =IF(AND(V10<>"",V9=""),SUM(V9:INDEX(V$3:V$6736,MIN(IF(V10:$V$6736="",ROW(V10:$V$6736)))-1)),"") ->  | Y9: =IF(AND(W10<>"",W9=""),SUM(W9:INDEX(W$3:W$6736,MIN(IF(W10:$W$6736="",ROW(W10:$W$6736)))-1)),"") ->  | AN9: 1 | AO9: =MATCH(ROW(AO8),Лист3!AN:AN,) -> 16
A10: =Лист1!A:A -> М2 | B10: =Лист1!B:B -> Груша | C10: =Лист1!F:F -> 1 | D10: =Лист1!E:E -> 2000 | E10: =Лист1!F:F -> 1 | F10: =Лист1!G:G -> а | G10: =Лист1!K:K -> 0.05 | H10: =Лист1!M:M -> 0.3 | I10: =Лист1!I10 -> 1030 | J10: 1030 | K10: М2 | L10: Груша | M10: 1 | N10: 2000 | O10: 1 | P10: а | Q10: 0.05 | R10: 0.3 | X10: =IF(AND(V11<>"",V10=""),SUM(V10:INDEX(V$3:V$6736,MIN(IF(V11:$V$6736="",ROW(V11:$V$6736)))-1)),"") ->  | Y10: =IF(AND(W11<>"",W10=""),SUM(W10:INDEX(W$3:W$6736,MIN(IF(W11:$W$6736="",ROW(W11:$W$6736)))-1)),"") ->  | Z10: 0.05 | AA10: 0.3 | AB10: Груша | AC10: 1 | AD10: Груша1 | AE10: М2 | AF10: Груша1 | AG10: 2000 | AH10: 1 | AI10: а | AJ10: 20001а | AK10: 0.05 | AL10: 0.3 | AM10: 1030 | AN10: 2 | AO10: =MATCH(ROW(AO9),Лист3!AN:AN,) -> 17
A11: =Лист1!A:A -> М3 | B11: =Лист1!B:B -> 0 | C11: =Лист1!F:F -> 1 | D11: =Лист1!E:E -> 3000 | E11: =Лист1!F:F -> 1 | F11: =Лист1!G:G -> в | G11: =Лист1!K:K -> 0.06 | H11: =Лист1!M:M -> 0.4 | I11: =Лист1!I11 -> 1040 | J11: 1040 | K11: М3 | M11: 1 | N11: 3000 | O11: 1 | P11: в | Q11: 0.06 | R11: 0.4 | X11: =IF(AND(V12<>"",V11=""),SUM(V11:INDEX(V$3:V$6736,MIN(IF(V12:$V$6736="",ROW(V12:$V$6736)))-1)),"") ->  | Y11: =IF(AND(W12<>"",W11=""),SUM(W11:INDEX(W$3:W$6736,MIN(IF(W12:$W$6736="",ROW(W12:$W$6736)))-1)),"") ->  | Z11: 0.06 | AA11: 0.4 | AC11: 1 | AD11: 1 | AE11: М3 | AG11: 3000 | AH11: 1 | AI11: в | AJ11: 30001в | AK11: 0.06 | AL11: 0.4 | AM11: 1040 | AN11: 3 | AO11: =MATCH(ROW(AO10),Лист3!AN:AN,) -> 18
A12: =Лист1!A:A -> М4 | B12: =Лист1!B:B -> 0 | C12: =Лист1!F:F -> 1 | D12: =Лист1!E:E -> 4000 | E12: =Лист1!F:F -> 1 | F12: =Лист1!G:G -> с | G12: =Лист1!K:K -> 0.07 | H12: =Лист1!M:M -> 0.5 | I12: =Лист1!I12 -> 1050 | J12: 1050 | K12: М4 | M12: 1 | N12: 4000 | O12: 1 | P12: с | Q12: 0.07 | R12: 0.5 | X12: =IF(AND(V13<>"",V12=""),SUM(V12:INDEX(V$3:V$6736,MIN(IF(V13:$V$6736="",ROW(V13:$V$6736)))-1)),"") ->  | Y12: =IF(AND(W13<>"",W12=""),SUM(W12:INDEX(W$3:W$6736,MIN(IF(W13:$W$6736="",ROW(W13:$W$6736)))-1)),"") ->  | Z12: 0.07 | AA12: 0.5 | AC12: 1 | AD12: 1 | AE12: М4 | AG12: 4000 | AH12: 1 | AI12: с | AJ12: 40001с | AK12: 0.07 | AL12: 0.5 | AM12: 1050 | AN12: 4 | AO12: =MATCH(ROW(AO11),Лист3!AN:AN,) -> 19
A13: =Лист1!A:A -> М5 | B13: =Лист1!B:B -> Лимон | C13: =Лист1!F:F -> 2 | D13: =Лист1!E:E -> 5000 | E13: =Лист1!F:F -> 2 | F13: =Лист1!G:G -> а | G13: =Лист1!K:K -> 0.08 | H13: =Лист1!M:M -> 0.6 | I13: =Лист1!I13 -> 1060 | J13: 1060 | K13: М5 | L13: Лимон | M13: 2 | N13: 5000 | O13: 2 | P13: а | Q13: 0.08 | R13: 0.6 | X13: =IF(AND(V14<>"",V13=""),SUM(V13:INDEX(V$3:V$6736,MIN(IF(V14:$V$6736="",ROW(V14:$V$6736)))-1)),"") ->  | Y13: =IF(AND(W14<>"",W13=""),SUM(W13:INDEX(W$3:W$6736,MIN(IF(W14:$W$6736="",ROW(W14:$W$6736)))-1)),"") ->  | Z13: 0.08 | AA13: 0.6 | AB13: Лимон | AC13: 2 | AD13: Лимон2 | AE13: М5 | AF13: Лимон2 | AG13: 5000 | AH13: 2 | AI13: а | AJ13: 50002а | AK13: 0.08 | AL13: 0.6 | AM13: 1060 | AN13: 5 | AO13: =MATCH(ROW(AO12),Лист3!AN:AN,) -> 20
A14: =Лист1!A:A -> М6 | B14: =Лист1!B:B -> 0 | C14: =Лист1!F:F -> 2 | D14: =Лист1!E:E -> 6000 | E14: =Лист1!F:F -> 2 | F14: =Лист1!G:G -> в | G14: =Лист1!K:K -> 0.09 | H14: =Лист1!M:M -> 0.7 | I14: =Лист1!I14 -> 1070 | J14: 1070 | K14: М6 | M14: 2 | N14: 6000 | O14: 2 | P14: в | Q14: 0.09 | R14: 0.7 | X14: =IF(AND(V15<>"",V14=""),SUM(V14:INDEX(V$3:V$6736,MIN(IF(V15:$V$6736="",ROW(V15:$V$6736)))-1)),"") ->  | Y14: =IF(AND(W15<>"",W14=""),SUM(W14:INDEX(W$3:W$6736,MIN(IF(W15:$W$6736="",ROW(W15:$W$6736)))-1)),"") ->  | Z14: 0.09 | AA14: 0.7 | AC14: 2 | AD14: 2 | AE14: М6 | AG14: 6000 | AH14: 2 | AI14: в | AJ14: 60002в | AK14: 0.09 | AL14: 0.7 | AM14: 1070 | AN14: 6 | AO14: =MATCH(ROW(AO13),Лист3!AN:AN,) -> 
A15: =Лист1!A:A -> М7 | B15: =Лист1!B:B -> 0 | C15: =Лист1!F:F -> 2 | D15: =Лист1!E:E -> 7000 | E15: =Лист1!F:F -> 2 | F15: =Лист1!G:G -> с | G15: =Лист1!K:K -> 0.1 | H15: =Лист1!M:M -> 0.8 | I15: =Лист1!I15 -> 1080 | J15: 1080 | K15: М7 | M15: 2 | N15: 7000 | O15: 2 | P15: с | Q15: 0.1 | R15: 0.8 | X15: =IF(AND(V16<>"",V15=""),SUM(V15:INDEX(V$3:V$6736,MIN(IF(V16:$V$6736="",ROW(V16:$V$6736)))-1)),"") ->  | Y15: =IF(AND(W16<>"",W15=""),SUM(W15:INDEX(W$3:W$6736,MIN(IF(W16:$W$6736="",ROW(W16:$W$6736)))-1)),"") ->  | Z15: 0.1 | AA15: 0.8 | AC15: 2 | AD15: 2 | AE15: М7 | AG15: 7000 | AH15: 2 | AI15: с | AJ15: 70002с | AK15: 0.1 | AL15: 0.8 | AM15: 1080 | AN15: 7 | AO15: =MATCH(ROW(AO14),Лист3!AN:AN,) -> 
A16: =Лист1!A:A -> М8 | B16: =Лист1!B:B -> Киви | C16: =Лист1!F:F -> 3 | D16: =Лист1!E:E -> 8000 | E16: =Лист1!F:F -> 3 | F16: =Лист1!G:G -> а | G16: =Лист1!K:K -> 0.11 | H16: =Лист1!M:M -> 0.9 | I16: =Лист1!I13 -> 1060 | J16: 1060 | K16: М8 | L16: Киви | M16: 3 | N16: 8000 | O16: 3 | P16: а | Q16: 0.11 | R16: 0.9 | X16: =IF(AND(V17<>"",V16=""),SUM(V16:INDEX(V$3:V$6736,MIN(IF(V17:$V$6736="",ROW(V17:$V$6736)))-1)),"") ->  | Y16: =IF(AND(W17<>"",W16=""),SUM(W16:INDEX(W$3:W$6736,MIN(IF(W17:$W$6736="",ROW(W17:$W$6736)))-1)),"") ->  | Z16: 0.11 | AA16: 0.9 | AB16: Киви | AC16: 3 | AD16: Киви3 | AE16: М8 | AF16: Киви3 | AG16: 8000 | AH16: 3 | AI16: а | AJ16: 80003а | AK16: 0.11 | AL16: 0.9 | AM16: 1060 | AN16: 8 | AO16: =MATCH(ROW(AO15),Лист3!AN:AN,) -> 
A17: =Лист1!A:A -> М9 | B17: =Лист1!B:B -> 0 | C17: =Лист1!F:F -> 3 | D17: =Лист1!E:E -> 9000 | E17: =Лист1!F:F -> 3 | F17: =Лист1!G:G -> в | G17: =Лист1!K:K -> 0.12 | H17: =Лист1!M:M -> 0.1 | I17: =Лист1!I14 -> 1070 | J17: 1070 | K17: М9 | M17: 3 | N17: 9000 | O17: 3 | P17: в | Q17: 0.12 | R17: 0.1 | X17: =IF(AND(V18<>"",V17=""),SUM(V17:INDEX(V$3:V$6736,MIN(IF(V18:$V$6736="",ROW(V18:$V$6736)))-1)),"") ->  | Y17: =IF(AND(W18<>"",W17=""),SUM(W17:INDEX(W$3:W$6736,MIN(IF(W18:$W$6736="",ROW(W18:$W$6736)))-1)),"") ->  | Z17: 0.12 | AA17: 0.1 | AC17: 3 | AD17: 3 | AE17: М9 | AG17: 9000 | AH17: 3 | AI17: в | AJ17: 90003в | AK17: 0.12 | AL17: 0.1 | AM17: 1070 | AN17: 9 | AO17: =MATCH(ROW(AO16),Лист3!AN:AN,) -> 
A18: =Лист1!A:A -> М10 | B18: =Лист1!B:B -> Вишня | C18: =Лист1!F:F -> 4 | D18: =Лист1!E:E -> 10000 | E18: =Лист1!F:F -> 4 | F18: =Лист1!G:G -> а | G18: =Лист1!K:K -> 0.13 | H18: =Лист1!M:M -> 0.11 | I18: =Лист1!I15 -> 1080 | J18: 1080 | K18: М10 | L18: Вишня | M18: 4 | N18: 10000 | O18: 4 | P18: а | Q18: 0.13 | R18: 0.11 | X18: =IF(AND(V19<>"",V18=""),SUM(V18:INDEX(V$3:V$6736,MIN(IF(V19:$V$6736="",ROW(V19:$V$6736)))-1)),"") ->  | Y18: =IF(AND(W19<>"",W18=""),SUM(W18:INDEX(W$3:W$6736,MIN(IF(W19:$W$6736="",ROW(W19:$W$6736)))-1)),"") ->  | Z18: 0.13 | AA18: 0.11 | AB18: Вишня | AC18: 4 | AD18: Вишня4 | AE18: М10 | AF18: Вишня4 | AG18: 10000 | AH18: 4 | AI18: а | AJ18: 100004а | AK18: 0.13 | AL18: 0.11 | AM18: 1080 | AN18: 10 | AO18: =MATCH(ROW(AO17),Лист3!AN:AN,) -> 
A19: =Лист1!A:A -> М11 | B19: =Лист1!B:B -> Груша | C19: =Лист1!F:F -> 5 | D19: =Лист1!E:E -> 2000 | E19: =Лист1!F:F -> 5 | F19: =Лист1!G:G -> а | G19: =Лист1!K:K -> 0.14 | H19: =Лист1!M:M -> -0.42 | I19: =Лист1!I16 -> 1090 | J19: 1090 | K19: М11 | L19: Груша | M19: 5 | N19: 2000 | O19: 5 | P19: а | Q19: 0.14 | R19: -0.42 | X19: =IF(AND(V20<>"",V19=""),SUM(V19:INDEX(V$3:V$6736,MIN(IF(V20:$V$6736="",ROW(V20:$V$6736)))-1)),"") ->  | Y19: =IF(AND(W20<>"",W19=""),SUM(W19:INDEX(W$3:W$6736,MIN(IF(W20:$W$6736="",ROW(W20:$W$6736)))-1)),"") ->  | Z19: 0.14 | AA19: -0.42 | AB19: Груша | AC19: 5 | AD19: Груша5 | AE19: М11 | AF19: Груша5 | AG19: 2000 | AH19: 5 | AI19: а | AJ19: 20005а | AK19: 0.14 | AL19: -0.42 | AM19: 1090 | AN19: 11 | AO19: =MATCH(ROW(AO18),Лист3!AN:AN,) -> 
A20: =Лист1!A:A -> М12 | B20: =Лист1!B:B -> 0 | C20: =Лист1!F:F -> 5 | D20: =Лист1!E:E -> 3000 | E20: =Лист1!F:F -> 5 | F20: =Лист1!G:G -> в | G20: =Лист1!K:K -> 0.15 | H20: =Лист1!M:M -> -0.815 | I20: =Лист1!I17 -> 1100 | J20: 1100 | K20: М12 | M20: 5 | N20: 3000 | O20: 5 | P20: в | Q20: 0.15 | R20: -0.815 | X20: =IF(AND(V21<>"",V20=""),SUM(V20:INDEX(V$3:V$6736,MIN(IF(V21:$V$6736="",ROW(V21:$V$6736)))-1)),"") ->  | Y20: =IF(AND(W21<>"",W20=""),SUM(W20:INDEX(W$3:W$6736,MIN(IF(W21:$W$6736="",ROW(W21:$W$6736)))-1)),"") ->  | Z20: 0.15 | AA20: -0.815 | AC20: 5 | AD20: 5 | AE20: М12 | AG20: 3000 | AH20: 5 | AI20: в | AJ20: 30005в | AK20: 0.15 | AL20: -0.815 | AM20: 1100 | AN20: 12 | AO20: =MATCH(ROW(AO19),Лист3!AN:AN,) -> 
A21: =Лист1!A:A -> М13 | B21: =Лист1!B:B -> 0 | C21: =Лист1!F:F -> 5 | D21: =Лист1!E:E -> 4000 | E21: =Лист1!F:F -> 5 | F21: =Лист1!G:G -> с | G21: =Лист1!K:K -> 0.16 | H21: =Лист1!M:M -> -1.21 | I21: =Лист1!I18 -> 1110 | J21: 1110 | K21: М13 | M21: 5 | N21: 4000 | O21: 5 | P21: с | Q21: 0.16 | R21: -1.21 | X21: =IF(AND(V22<>"",V21=""),SUM(V21:INDEX(V$3:V$6736,MIN(IF(V22:$V$6736="",ROW(V22:$V$6736)))-1)),"") ->  | Y21: =IF(AND(W22<>"",W21=""),SUM(W21:INDEX(W$3:W$6736,MIN(IF(W22:$W$6736="",ROW(W22:$W$6736)))-1)),"") ->  | Z21: 0.16 | AA21: -1.21 | AC21: 5 | AD21: 5 | AE21: =IF(P21<>"С",IF((TRIM(LEFT(SUBSTITUTE(M21,".",REPT(" ",15)),15))=(TRIM(LEFT(SUBSTITUTE(M20,".",REPT(" ",15)),15))))*ISNUMBER(FIND(".",M21)),"",K21),K21& IF((TRIM(LEFT(SUBSTITUTE(M22,".",REPT(" ",15)),15))=M21)*(COUNTIF(K21:K22,K22)<2)*(COUNTIF(P21:P22,"с")=1),","&K22,"")& IF((TRIM(LEFT(SUBSTITUTE(M23,".",REPT(" ",15)),15))=M21)*(COUNTIF(K21:K23,K23)<2)*(COUNTIF(P21:P23,"с")=1),","&K23,"")& IF((TRIM(LEFT(SUBSTITUTE(M24,".",REPT(" ",15)),15))=M21)*(COUNTIF(K21:K24,K24)<2)*(COUNTIF(P21:P24,"с")=1),","&K24,"")& IF((TRIM(LEFT(SUBSTITUTE(M25,".",REPT(" ",15)),15))=M21)*(COUNTIF(K21:K25,K25)<2)*(COUNTIF(P21:P25,"с")=1),","&K25,"")& IF((TRIM(LEFT(SUBSTITUTE(M26,".",REPT(" ",15)),15))=M21)*(COUNTIF(K21:K26,K26)<2)*(COUNTIF(P21:P26,"с")=1),","&K26,"")& IF((TRIM(LEFT(SUBSTITUTE(M27,".",REPT(" ",15)),15))=M21)*(COUNTIF(K21:K27,K27)<2)*(COUNTIF(P21:P27,"с")=1),","&K27,"")& IF((TRIM(LEFT(SUBSTITUTE(#REF!,".",REPT(" ",15)),15))=M21)*(COUNTIF(K21:K27,#REF!)<2)*(COUNTIF(P21:P27,"с")=1),","&#REF!,"")) ->  | AG21: 4000 | AH21: 5 | AI21: с | AJ21: 40005с | AK21: 0.16 | AL21: -1.21 | AM21: 1110 | AO21: =MATCH(ROW(AO20),Лист3!AN:AN,) -> 
A22: =Лист1!A:A -> М14 | B22: =Лист1!B:B -> Лимон | C22: =Лист1!F:F -> 6 | D22: =Лист1!E:E -> 5000 | E22: =Лист1!F:F -> 6 | F22: =Лист1!G:G -> а | G22: =Лист1!K:K -> 0.17 | H22: =Лист1!M:M -> -1.605 | I22: =Лист1!I19 -> 1120 | J22: 1120 | K22: М14 | L22: Лимон | M22: 6 | N22: 5000 | O22: 6 | P22: а | Q22: 0.17 | R22: -1.605 | X22: =IF(AND(V23<>"",V22=""),SUM(V22:INDEX(V$3:V$6736,MIN(IF(V23:$V$6736="",ROW(V23:$V$6736)))-1)),"") ->  | Y22: =IF(AND(W23<>"",W22=""),SUM(W22:INDEX(W$3:W$6736,MIN(IF(W23:$W$6736="",ROW(W23:$W$6736)))-1)),"") ->  | Z22: 0.17 | AA22: -1.605 | AB22: Лимон | AC22: 6 | AD22: Лимон6 | AE22: =IF(P22<>"С",IF((TRIM(LEFT(SUBSTITUTE(M22,".",REPT(" ",15)),15))=(TRIM(LEFT(SUBSTITUTE(M21,".",REPT(" ",15)),15))))*ISNUMBER(FIND(".",M22)),"",K22),K22& IF((TRIM(LEFT(SUBSTITUTE(M23,".",REPT(" ",15)),15))=M22)*(COUNTIF(K22:K23,K23)<2)*(COUNTIF(P22:P23,"с")=1),","&K23,"")& IF((TRIM(LEFT(SUBSTITUTE(M24,".",REPT(" ",15)),15))=M22)*(COUNTIF(K22:K24,K24)<2)*(COUNTIF(P22:P24,"с")=1),","&K24,"")& IF((TRIM(LEFT(SUBSTITUTE(M25,".",REPT(" ",15)),15))=M22)*(COUNTIF(K22:K25,K25)<2)*(COUNTIF(P22:P25,"с")=1),","&K25,"")& IF((TRIM(LEFT(SUBSTITUTE(M26,".",REPT(" ",15)),15))=M22)*(COUNTIF(K22:K26,K26)<2)*(COUNTIF(P22:P26,"с")=1),","&K26,"")& IF((TRIM(LEFT(SUBSTITUTE(M27,".",REPT(" ",15)),15))=M22)*(COUNTIF(K22:K27,K27)<2)*(COUNTIF(P22:P27,"с")=1),","&K27,"")& IF((TRIM(LEFT(SUBSTITUTE(#REF!,".",REPT(" ",15)),15))=M22)*(COUNTIF(K22:K27,#REF!)<2)*(COUNTIF(P22:P27,"с")=1),","&#REF!,"")& IF((TRIM(LEFT(SUBSTITUTE(#REF!,".",REPT(" ",15)),15))=M22)*(COUNTIF(K22:K27,#REF!)<2)*(COUNTIF(P22:P27,"с")=1),","&#REF!,"")) -> М14 | AF22: Лимон6 | AG22: 5000 | AH22: 6 | AI22: а | AJ22: 50006а | AK22: 0.17 | AL22: -1.605 | AM22: 1120 | AO22: =MATCH(ROW(AO21),Лист3!AN:AN,) -> 
A23: =Лист1!A:A -> М15 | B23: =Лист1!B:B -> 0 | C23: =Лист1!F:F -> 6 | D23: =Лист1!E:E -> 6000 | E23: =Лист1!F:F -> 6 | F23: =Лист1!G:G -> в | G23: =Лист1!K:K -> 0.18 | H23: =Лист1!M:M -> -2 | I23: =Лист1!I20 -> 1130 | J23: 1130 | K23: М15 | M23: 6 | N23: 6000 | O23: 6 | P23: в | Q23: 0.18 | R23: -2 | X23: =IF(AND(V24<>"",V23=""),SUM(V23:INDEX(V$3:V$6736,MIN(IF(V24:$V$6736="",ROW(V24:$V$6736)))-1)),"") ->  | Y23: =IF(AND(W24<>"",W23=""),SUM(W23:INDEX(W$3:W$6736,MIN(IF(W24:$W$6736="",ROW(W24:$W$6736)))-1)),"") ->  | Z23: 0.18 | AA23: -2 | AC23: 6 | AD23: 6 | AE23: =IF(P23<>"С",IF((TRIM(LEFT(SUBSTITUTE(M23,".",REPT(" ",15)),15))=(TRIM(LEFT(SUBSTITUTE(M22,".",REPT(" ",15)),15))))*ISNUMBER(FIND(".",M23)),"",K23),K23& IF((TRIM(LEFT(SUBSTITUTE(M24,".",REPT(" ",15)),15))=M23)*(COUNTIF(K23:K24,K24)<2)*(COUNTIF(P23:P24,"с")=1),","&K24,"")& IF((TRIM(LEFT(SUBSTITUTE(M25,".",REPT(" ",15)),15))=M23)*(COUNTIF(K23:K25,K25)<2)*(COUNTIF(P23:P25,"с")=1),","&K25,"")& IF((TRIM(LEFT(SUBSTITUTE(M26,".",REPT(" ",15)),15))=M23)*(COUNTIF(K23:K26,K26)<2)*(COUNTIF(P23:P26,"с")=1),","&K26,"")& IF((TRIM(LEFT(SUBSTITUTE(M27,".",REPT(" ",15)),15))=M23)*(COUNTIF(K23:K27,K27)<2)*(COUNTIF(P23:P27,"с")=1),","&K27,"")& IF((TRIM(LEFT(SUBSTITUTE(#REF!,".",REPT(" ",15)),15))=M23)*(COUNTIF(K23:K27,#REF!)<2)*(COUNTIF(P23:P27,"с")=1),","&#REF!,"")& IF((TRIM(LEFT(SUBSTITUTE(#REF!,".",REPT(" ",15)),15))=M23)*(COUNTIF(K23:K27,#REF!)<2)*(COUNTIF(P23:P27,"с")=1),","&#REF!,"")& IF((TRIM(LEFT(SUBSTITUTE(#REF!,".",REPT(" ",15)),15))=M23)*(COUNTIF(K23:K27,#REF!)<2)*(COUNTIF(P23:P27,"с")=1),","&#REF!,"")) -> М15 | AG23: 6000 | AH23: 6 | AI23: в | AJ23: 60006в | AK23: 0.18 | AL23: -2 | AM23: 1130 | AO23: =MATCH(ROW(AO22),Лист3!AN:AN,) -> 
A24: =Лист1!A:A -> М16 | B24: =Лист1!B:B -> 0 | C24: =Лист1!F:F -> 6 | D24: =Лист1!E:E -> 7000 | E24: =Лист1!F:F -> 6 | F24: =Лист1!G:G -> с | G24: =Лист1!K:K -> 0.19 | H24: =Лист1!M:M -> -2.395 | I24: =Лист1!I21 -> 1140 | J24: 1140 | K24: М16 | M24: 6 | N24: 7000 | O24: 6 | P24: с | Q24: 0.19 | R24: -2.395 | X24: =IF(AND(V25<>"",V24=""),SUM(V24:INDEX(V$3:V$6736,MIN(IF(V25:$V$6736="",ROW(V25:$V$6736)))-1)),"") ->  | Y24: =IF(AND(W25<>"",W24=""),SUM(W24:INDEX(W$3:W$6736,MIN(IF(W25:$W$6736="",ROW(W25:$W$6736)))-1)),"") ->  | Z24: 0.19 | AA24: -2.395 | AC24: 6 | AD24: 6 | AE24: =IF(P24<>"С",IF((TRIM(LEFT(SUBSTITUTE(M24,".",REPT(" ",15)),15))=(TRIM(LEFT(SUBSTITUTE(M23,".",REPT(" ",15)),15))))*ISNUMBER(FIND(".",M24)),"",K24),K24& IF((TRIM(LEFT(SUBSTITUTE(M25,".",REPT(" ",15)),15))=M24)*(COUNTIF(K24:K25,K25)<2)*(COUNTIF(P24:P25,"с")=1),","&K25,"")& IF((TRIM(LEFT(SUBSTITUTE(M26,".",REPT(" ",15)),15))=M24)*(COUNTIF(K24:K26,K26)<2)*(COUNTIF(P24:P26,"с")=1),","&K26,"")& IF((TRIM(LEFT(SUBSTITUTE(M27,".",REPT(" ",15)),15))=M24)*(COUNTIF(K24:K27,K27)<2)*(COUNTIF(P24:P27,"с")=1),","&K27,"")& IF((TRIM(LEFT(SUBSTITUTE(#REF!,".",REPT(" ",15)),15))=M24)*(COUNTIF(K24:K27,#REF!)<2)*(COUNTIF(P24:P27,"с")=1),","&#REF!,"")& IF((TRIM(LEFT(SUBSTITUTE(#REF!,".",REPT(" ",15)),15))=M24)*(COUNTIF(K24:K27,#REF!)<2)*(COUNTIF(P24:P27,"с")=1),","&#REF!,"")& IF((TRIM(LEFT(SUBSTITUTE(#REF!,".",REPT(" ",15)),15))=M24)*(COUNTIF(K24:K27,#REF!)<2)*(COUNTIF(P24:P27,"с")=1),","&#REF!,"")& IF((TRIM(LEFT(SUBSTITUTE(#REF!,".",REPT(" ",15)),15))=M24)*(COUNTIF(K24:K27,#REF!)<2)*(COUNTIF(P24:P27,"с")=1),","&#REF!,"")) ->  | AG24: 7000 | AH24: 6 | AI24: с | AJ24: 70006с | AK24: 0.19 | AL24: -2.395 | AM24: 1140 | AO24: =MATCH(ROW(AO23),Лист3!AN:AN,) -> 
A25: =Лист1!A:A -> 0 | B25: =Лист1!B:B -> 0 | C25: =Лист1!F:F -> 0 | D25: =Лист1!E:E -> 0 | E25: =Лист1!F:F -> 0 | F25: =Лист1!G:G -> 0 | G25: =Лист1!K:K -> 0 | H25: =Лист1!M:M -> 0 | I25: =Лист1!I22 -> 1150 | J25: 1150 | X25: =IF(AND(V26<>"",V25=""),SUM(V25:INDEX(V$3:V$6736,MIN(IF(V26:$V$6736="",ROW(V26:$V$6736)))-1)),"") ->  | Y25: =IF(AND(W26<>"",W25=""),SUM(W25:INDEX(W$3:W$6736,MIN(IF(W26:$W$6736="",ROW(W26:$W$6736)))-1)),"") ->  | AE25: =IF(P25<>"С",IF((TRIM(LEFT(SUBSTITUTE(M25,".",REPT(" ",15)),15))=(TRIM(LEFT(SUBSTITUTE(M24,".",REPT(" ",15)),15))))*ISNUMBER(FIND(".",M25)),"",K25),K25& IF((TRIM(LEFT(SUBSTITUTE(M26,".",REPT(" ",15)),15))=M25)*(COUNTIF(K25:K26,K26)<2)*(COUNTIF(P25:P26,"с")=1),","&K26,"")& IF((TRIM(LEFT(SUBSTITUTE(M27,".",REPT(" ",15)),15))=M25)*(COUNTIF(K25:K27,K27)<2)*(COUNTIF(P25:P27,"с")=1),","&K27,"")& IF((TRIM(LEFT(SUBSTITUTE(#REF!,".",REPT(" ",15)),15))=M25)*(COUNTIF(K25:K27,#REF!)<2)*(COUNTIF(P25:P27,"с")=1),","&#REF!,"")& IF((TRIM(LEFT(SUBSTITUTE(#REF!,".",REPT(" ",15)),15))=M25)*(COUNTIF(K25:K27,#REF!)<2)*(COUNTIF(P25:P27,"с")=1),","&#REF!,"")& IF((TRIM(LEFT(SUBSTITUTE(#REF!,".",REPT(" ",15)),15))=M25)*(COUNTIF(K25:K27,#REF!)<2)*(COUNTIF(P25:P27,"с")=1),","&#REF!,"")& IF((TRIM(LEFT(SUBSTITUTE(#REF!,".",REPT(" ",15)),15))=M25)*(COUNTIF(K25:K27,#REF!)<2)*(COUNTIF(P25:P27,"с")=1),","&#REF!,"")& IF((TRIM(LEFT(SUBSTITUTE(#REF!,".",REPT(" ",15)),15))=M25)*(COUNTIF(K25:K27,#REF!)<2)*(COUNTIF(P25:P27,"с")=1),","&#REF!,"")) ->  | AM25: 1150 | AO25: =MATCH(ROW(AO24),Лист3!AN:AN,) -> 
A26: =Лист1!A:A -> 0 | B26: =Лист1!B:B -> 0 | C26: =Лист1!F:F -> 0 | D26: =Лист1!E:E -> 0 | E26: =Лист1!F:F -> 0 | F26: =Лист1!G:G -> 0 | G26: =Лист1!K:K -> 0 | H26: =Лист1!M:M -> 0 | I26: =Лист1!I23 -> 1160 | J26: 1160 | X26: =IF(AND(V27<>"",V26=""),SUM(V26:INDEX(V$3:V$6736,MIN(IF(V27:$V$6736="",ROW(V27:$V$6736)))-1)),"") ->  | Y26: =IF(AND(W27<>"",W26=""),SUM(W26:INDEX(W$3:W$6736,MIN(IF(W27:$W$6736="",ROW(W27:$W$6736)))-1)),"") ->  | AE26: =IF(P26<>"С",IF((TRIM(LEFT(SUBSTITUTE(M26,".",REPT(" ",15)),15))=(TRIM(LEFT(SUBSTITUTE(M25,".",REPT(" ",15)),15))))*ISNUMBER(FIND(".",M26)),"",K26),K26& IF((TRIM(LEFT(SUBSTITUTE(M27,".",REPT(" ",15)),15))=M26)*(COUNTIF(K26:K27,K27)<2)*(COUNTIF(P26:P27,"с")=1),","&K27,"")& IF((TRIM(LEFT(SUBSTITUTE(#REF!,".",REPT(" ",15)),15))=M26)*(COUNTIF(K26:K27,#REF!)<2)*(COUNTIF(P26:P27,"с")=1),","&#REF!,"")& IF((TRIM(LEFT(SUBSTITUTE(#REF!,".",REPT(" ",15)),15))=M26)*(COUNTIF(K26:K27,#REF!)<2)*(COUNTIF(P26:P27,"с")=1),","&#REF!,"")& IF((TRIM(LEFT(SUBSTITUTE(#REF!,".",REPT(" ",15)),15))=M26)*(COUNTIF(K26:K27,#REF!)<2)*(COUNTIF(P26:P27,"с")=1),","&#REF!,"")& IF((TRIM(LEFT(SUBSTITUTE(#REF!,".",REPT(" ",15)),15))=M26)*(COUNTIF(K26:K27,#REF!)<2)*(COUNTIF(P26:P27,"с")=1),","&#REF!,"")& IF((TRIM(LEFT(SUBSTITUTE(#REF!,".",REPT(" ",15)),15))=M26)*(COUNTIF(K26:K27,#REF!)<2)*(COUNTIF(P26:P27,"с")=1),","&#REF!,"")& IF((TRIM(LEFT(SUBSTITUTE(#REF!,".",REPT(" ",15)),15))=M26)*(COUNTIF(K26:K27,#REF!)<2)*(COUNTIF(P26:P27,"с")=1),","&#REF!,"")) ->  | AM26: 1160 | AO26: =MATCH(ROW(AO25),Лист3!AN:AN,) -> 
A27: =Лист1!A:A -> 0 | B27: =Лист1!B:B -> 0 | C27: =Лист1!F:F -> 0 | D27: =Лист1!E:E -> 0 | E27: =Лист1!F:F -> 0 | F27: =Лист1!G:G -> 0 | G27: =Лист1!K:K -> 0 | H27: =Лист1!M:M -> 0 | I27: =Лист1!I24 -> 1170 | J27: 1170 | X27: =IF(AND(#REF!<>"",V27=""),SUM(V27:INDEX(V$3:V$6736,MIN(IF(V28:$V$6736="",ROW(V28:$V$6736)))-1)),"") ->  | Y27: =IF(AND(#REF!<>"",W27=""),SUM(W27:INDEX(W$3:W$6736,MIN(IF(W28:$W$6736="",ROW(W28:$W$6736)))-1)),"") ->  | AE27: =IF(P27<>"С",IF((TRIM(LEFT(SUBSTITUTE(M27,".",REPT(" ",15)),15))=(TRIM(LEFT(SUBSTITUTE(M26,".",REPT(" ",15)),15))))*ISNUMBER(FIND(".",M27)),"",K27),K27& IF((TRIM(LEFT(SUBSTITUTE(#REF!,".",REPT(" ",15)),15))=M27)*(COUNTIF(K27:K27,#REF!)<2)*(COUNTIF(P27:P27,"с")=1),","&#REF!,"")& IF((TRIM(LEFT(SUBSTITUTE(#REF!,".",REPT(" ",15)),15))=M27)*(COUNTIF(K27:K27,#REF!)<2)*(COUNTIF(P27:P27,"с")=1),","&#REF!,"")& IF((TRIM(LEFT(SUBSTITUTE(#REF!,".",REPT(" ",15)),15))=M27)*(COUNTIF(K27:K27,#REF!)<2)*(COUNTIF(P27:P27,"с")=1),","&#REF!,"")& IF((TRIM(LEFT(SUBSTITUTE(#REF!,".",REPT(" ",15)),15))=M27)*(COUNTIF(K27:K27,#REF!)<2)*(COUNTIF(P27:P27,"с")=1),","&#REF!,"")& IF((TRIM(LEFT(SUBSTITUTE(#REF!,".",REPT(" ",15)),15))=M27)*(COUNTIF(K27:K27,#REF!)<2)*(COUNTIF(P27:P27,"с")=1),","&#REF!,"")& IF((TRIM(LEFT(SUBSTITUTE(#REF!,".",REPT(" ",15)),15))=M27)*(COUNTIF(K27:K27,#REF!)<2)*(COUNTIF(P27:P27,"с")=1),","&#REF!,"")& IF((TRIM(LEFT(SUBSTITUTE(#REF!,".",REPT(" ",15)),15))=M27)*(COUNTIF(K27:K27,#REF!)<2)*(COUNTIF(P27:P27,"с")=1),","&#REF!,"")) ->  | AM27: 1170 | AO27: =MATCH(ROW(AO26),Лист3!AN:AN,) -> 

Sheet Лист4
A1: Ф1 | B1: Ф2 | C1: Ф3 | D1: Ф4 | E1: Ф5 | F1: Ф6 | G1: Ф7
A2: =IF(ISNUMBER(Лист3!$AO1),INDEX(Лист3!AE:AE,Лист3!$AO1),"") ->  | B2: =IF(ISNUMBER(Лист3!$AO1),INDEX(Лист3!AF:AF,Лист3!$AO1),"") ->  | C2: =IF(ISNUMBER(Лист3!#REF!),INDEX(Лист3!AJ:AJ,Лист3!#REF!),"") ->  | D2: =IF(ISNUMBER(Лист3!$AO1),INDEX(Лист3!AI:AI,Лист3!$AO1),"") ->  | E2: =IF(ISNUMBER(Лист3!#REF!),INDEX(Лист3!AK:AK,Лист3!#REF!),"") ->  | F2: =IF(ISNUMBER(Лист3!#REF!),INDEX(Лист3!AL:AL,Лист3!#REF!),"") ->  | G2: =IF(ISNUMBER(Лист3!#REF!),INDEX(Лист3!AM:AM,Лист3!#REF!),"") -> 
A3: =IF(ISNUMBER(Лист3!$AO2),INDEX(Лист3!AE:AE,Лист3!$AO2),"") -> М1 | B3: =IF(ISNUMBER(Лист3!$AO2),INDEX(Лист3!AF:AF,Лист3!$AO2),"") -> Яблоко1 | C3: =IF(ISNUMBER(Лист3!$AO2),INDEX(Лист3!AJ:AJ,Лист3!$AO2),"") -> 10001а | D3: =IF(ISNUMBER(Лист3!$AO2),INDEX(Лист3!AI:AI,Лист3!$AO2),"") -> а | E3: =IF(ISNUMBER(Лист3!$AO2),INDEX(Лист3!AK:AK,Лист3!$AO2),"") -> 0.04 | F3: =IF(ISNUMBER(Лист3!$AO2),INDEX(Лист3!AL:AL,Лист3!$AO2),"") -> 0.2 | G3: =IF(ISNUMBER(Лист3!$AO2),INDEX(Лист3!AM:AM,Лист3!$AO2),"") -> 1020 | M3: =IF(ISNUMBER(Лист3!$U2),INDEX(Лист3!AE:AE,Лист3!$U2),"") -> 
A4: =IF(ISNUMBER(Лист3!$AO3),INDEX(Лист3!AE:AE,Лист3!$AO3),"") -> М2 | B4: =IF(ISNUMBER(Лист3!$AO3),INDEX(Лист3!AF:AF,Лист3!$AO3),"") -> Груша1 | C4: =IF(ISNUMBER(Лист3!$AO3),INDEX(Лист3!AJ:AJ,Лист3!$AO3),"") -> 20001а | D4: =IF(ISNUMBER(Лист3!$AO3),INDEX(Лист3!AI:AI,Лист3!$AO3),"") -> а | E4: =IF(ISNUMBER(Лист3!$AO3),INDEX(Лист3!AK:AK,Лист3!$AO3),"") -> 0.05 | F4: =IF(ISNUMBER(Лист3!$AO3),INDEX(Лист3!AL:AL,Лист3!$AO3),"") -> 0.3 | G4: =IF(ISNUMBER(Лист3!$AO3),INDEX(Лист3!AM:AM,Лист3!$AO3),"") -> 1030 | M4: =IF(ISNUMBER(Лист3!$U3),INDEX(Лист3!AE:AE,Лист3!$U3),"") -> 
A5: =IF(ISNUMBER(Лист3!$AO4),INDEX(Лист3!AE:AE,Лист3!$AO4),"") -> М3 | B5: =IF(ISNUMBER(Лист3!$AO4),INDEX(Лист3!AF:AF,Лист3!$AO4),"") ->  | C5: =IF(ISNUMBER(Лист3!$AO4),INDEX(Лист3!AJ:AJ,Лист3!$AO4),"") -> 30001в | D5: =IF(ISNUMBER(Лист3!$AO4),INDEX(Лист3!AI:AI,Лист3!$AO4),"") -> в | E5: =IF(ISNUMBER(Лист3!$AO4),INDEX(Лист3!AK:AK,Лист3!$AO4),"") -> 0.06 | F5: =IF(ISNUMBER(Лист3!$AO4),INDEX(Лист3!AL:AL,Лист3!$AO4),"") -> 0.4 | G5: =IF(ISNUMBER(Лист3!$AO4),INDEX(Лист3!AM:AM,Лист3!$AO4),"") -> 1040 | M5: =IF(ISNUMBER(Лист3!$U4),INDEX(Лист3!AE:AE,Лист3!$U4),"") -> 
A6: =IF(ISNUMBER(Лист3!$AO5),INDEX(Лист3!AE:AE,Лист3!$AO5),"") -> М4 | B6: =IF(ISNUMBER(Лист3!$AO5),INDEX(Лист3!AF:AF,Лист3!$AO5),"") ->  | C6: =IF(ISNUMBER(Лист3!$AO5),INDEX(Лист3!AJ:AJ,Лист3!$AO5),"") -> 40001с | D6: =IF(ISNUMBER(Лист3!$AO5),INDEX(Лист3!AI:AI,Лист3!$AO5),"") -> с | E6: =IF(ISNUMBER(Лист3!$AO5),INDEX(Лист3!AK:AK,Лист3!$AO5),"") -> 0.07 | F6: =IF(ISNUMBER(Лист3!$AO5),INDEX(Лист3!AL:AL,Лист3!$AO5),"") -> 0.5 | G6: =IF(ISNUMBER(Лист3!$AO5),INDEX(Лист3!AM:AM,Лист3!$AO5),"") -> 1050 | M6: =IF(ISNUMBER(Лист3!$U5),INDEX(Лист3!AE:AE,Лист3!$U5),"") -> 
A7: =IF(ISNUMBER(Лист3!$AO6),INDEX(Лист3!AE:AE,Лист3!$AO6),"") -> М5 | B7: =IF(ISNUMBER(Лист3!$AO6),INDEX(Лист3!AF:AF,Лист3!$AO6),"") -> Лимон2 | C7: =IF(ISNUMBER(Лист3!$AO6),INDEX(Лист3!AJ:AJ,Лист3!$AO6),"") -> 50002а | D7: =IF(ISNUMBER(Лист3!$AO6),INDEX(Лист3!AI:AI,Лист3!$AO6),"") -> а | E7: =IF(ISNUMBER(Лист3!$AO6),INDEX(Лист3!AK:AK,Лист3!$AO6),"") -> 0.08 | F7: =IF(ISNUMBER(Лист3!$AO6),INDEX(Лист3!AL:AL,Лист3!$AO6),"") -> 0.6 | G7: =IF(ISNUMBER(Лист3!$AO6),INDEX(Лист3!AM:AM,Лист3!$AO6),"") -> 1060 | M7: =IF(ISNUMBER(Лист3!$U6),INDEX(Лист3!AE:AE,Лист3!$U6),"") -> 
A8: =IF(ISNUMBER(Лист3!$AO7),INDEX(Лист3!AE:AE,Лист3!$AO7),"") -> М6 | B8: =IF(ISNUMBER(Лист3!$AO7),INDEX(Лист3!AF:AF,Лист3!$AO7),"") ->  | C8: =IF(ISNUMBER(Лист3!$AO7),INDEX(Лист3!AJ:AJ,Лист3!$AO7),"") -> 60002в | D8: =IF(ISNUMBER(Лист3!$AO7),INDEX(Лист3!AI:AI,Лист3!$AO7),"") -> в | E8: =IF(ISNUMBER(Лист3!$AO7),INDEX(Лист3!AK:AK,Лист3!$AO7),"") -> 0.09 | F8: =IF(ISNUMBER(Лист3!$AO7),INDEX(Лист3!AL:AL,Лист3!$AO7),"") -> 0.7 | G8: =IF(ISNUMBER(Лист3!$AO7),INDEX(Лист3!AM:AM,Лист3!$AO7),"") -> 1070 | M8: =IF(ISNUMBER(Лист3!$U7),INDEX(Лист3!AE:AE,Лист3!$U7),"") -> 
A9: =IF(ISNUMBER(Лист3!$AO8),INDEX(Лист3!AE:AE,Лист3!$AO8),"") -> М7 | B9: =IF(ISNUMBER(Лист3!$AO8),INDEX(Лист3!AF:AF,Лист3!$AO8),"") ->  | C9: =IF(ISNUMBER(Лист3!$AO8),INDEX(Лист3!AJ:AJ,Лист3!$AO8),"") -> 70002с | D9: =IF(ISNUMBER(Лист3!$AO8),INDEX(Лист3!AI:AI,Лист3!$AO8),"") -> с | E9: =IF(ISNUMBER(Лист3!$AO8),INDEX(Лист3!AK:AK,Лист3!$AO8),"") -> 0.1 | F9: =IF(ISNUMBER(Лист3!$AO8),INDEX(Лист3!AL:AL,Лист3!$AO8),"") -> 0.8 | G9: =IF(ISNUMBER(Лист3!$AO8),INDEX(Лист3!AM:AM,Лист3!$AO8),"") -> 1080 | M9: =IF(ISNUMBER(Лист3!$U8),INDEX(Лист3!AE:AE,Лист3!$U8),"") -> 
A10: =IF(ISNUMBER(Лист3!$AO9),INDEX(Лист3!AE:AE,Лист3!$AO9),"") -> М8 | B10: =IF(ISNUMBER(Лист3!$AO9),INDEX(Лист3!AF:AF,Лист3!$AO9),"") -> Киви3 | C10: =IF(ISNUMBER(Лист3!$AO9),INDEX(Лист3!AJ:AJ,Лист3!$AO9),"") -> 80003а | D10: =IF(ISNUMBER(Лист3!$AO9),INDEX(Лист3!AI:AI,Лист3!$AO9),"") -> а | E10: =IF(ISNUMBER(Лист3!$AO9),INDEX(Лист3!AK:AK,Лист3!$AO9),"") -> 0.11 | F10: =IF(ISNUMBER(Лист3!$AO9),INDEX(Лист3!AL:AL,Лист3!$AO9),"") -> 0.9 | G10: =IF(ISNUMBER(Лист3!$AO9),INDEX(Лист3!AM:AM,Лист3!$AO9),"") -> 1060 | M10: =IF(ISNUMBER(Лист3!$U9),INDEX(Лист3!AE:AE,Лист3!$U9),"") -> 
A11: =IF(ISNUMBER(Лист3!$AO10),INDEX(Лист3!AE:AE,Лист3!$AO10),"") -> М9 | B11: =IF(ISNUMBER(Лист3!$AO10),INDEX(Лист3!AF:AF,Лист3!$AO10),"") ->  | C11: =IF(ISNUMBER(Лист3!$AO10),INDEX(Лист3!AJ:AJ,Лист3!$AO10),"") -> 90003в | D11: =IF(ISNUMBER(Лист3!$AO10),INDEX(Лист3!AI:AI,Лист3!$AO10),"") -> в | E11: =IF(ISNUMBER(Лист3!$AO10),INDEX(Лист3!AK:AK,Лист3!$AO10),"") -> 0.12 | F11: =IF(ISNUMBER(Лист3!$AO10),INDEX(Лист3!AL:AL,Лист3!$AO10),"") -> 0.1 | G11: =IF(ISNUMBER(Лист3!$AO10),INDEX(Лист3!AM:AM,Лист3!$AO10),"") -> 1070 | M11: =IF(ISNUMBER(Лист3!$U10),INDEX(Лист3!AE:AE,Лист3!$U10),"") -> 
A12: =IF(ISNUMBER(Лист3!$AO11),INDEX(Лист3!AE:AE,Лист3!$AO11),"") -> М10 | B12: =IF(ISNUMBER(Лист3!$AO11),INDEX(Лист3!AF:AF,Лист3!$AO11),"") -> Вишня4 | C12: =IF(ISNUMBER(Лист3!$AO11),INDEX(Лист3!AJ:AJ,Лист3!$AO11),"") -> 100004а | D12: =IF(ISNUMBER(Лист3!$AO11),INDEX(Лист3!AI:AI,Лист3!$AO11),"") -> а | E12: =IF(ISNUMBER(Лист3!$AO11),INDEX(Лист3!AK:AK,Лист3!$AO11),"") -> 0.13 | F12: =IF(ISNUMBER(Лист3!$AO11),INDEX(Лист3!AL:AL,Лист3!$AO11),"") -> 0.11 | G12: =IF(ISNUMBER(Лист3!$AO11),INDEX(Лист3!AM:AM,Лист3!$AO11),"") -> 1080 | M12: =IF(ISNUMBER(Лист3!$U11),INDEX(Лист3!AE:AE,Лист3!$U11),"") -> 
A13: =IF(ISNUMBER(Лист3!$AO12),INDEX(Лист3!AE:AE,Лист3!$AO12),"") -> М11 | B13: =IF(ISNUMBER(Лист3!$AO12),INDEX(Лист3!AF:AF,Лист3!$AO12),"") -> Груша5 | C13: =IF(ISNUMBER(Лист3!$AO12),INDEX(Лист3!AJ:AJ,Лист3!$AO12),"") -> 20005а | D13: =IF(ISNUMBER(Лист3!$AO12),INDEX(Лист3!AI:AI,Лист3!$AO12),"") -> а | E13: =IF(ISNUMBER(Лист3!$AO12),INDEX(Лист3!AK:AK,Лист3!$AO12),"") -> 0.14 | F13: =IF(ISNUMBER(Лист3!$AO12),INDEX(Лист3!AL:AL,Лист3!$AO12),"") -> -0.42 | G13: =IF(ISNUMBER(Лист3!$AO12),INDEX(Лист3!AM:AM,Лист3!$AO12),"") -> 1090 | M13: =IF(ISNUMBER(Лист3!$U12),INDEX(Лист3!AE:AE,Лист3!$U12),"") -> 
A14: =IF(ISNUMBER(Лист3!$AO13),INDEX(Лист3!AE:AE,Лист3!$AO13),"") -> М12 | B14: =IF(ISNUMBER(Лист3!$AO13),INDEX(Лист3!AF:AF,Лист3!$AO13),"") ->  | C14: =IF(ISNUMBER(Лист3!$AO13),INDEX(Лист3!AJ:AJ,Лист3!$AO13),"") -> 30005в | D14: =IF(ISNUMBER(Лист3!$AO13),INDEX(Лист3!AI:AI,Лист3!$AO13),"") -> в | E14: =IF(ISNUMBER(Лист3!$AO13),INDEX(Лист3!AK:AK,Лист3!$AO13),"") -> 0.15 | F14: =IF(ISNUMBER(Лист3!$AO13),INDEX(Лист3!AL:AL,Лист3!$AO13),"") -> -0.815 | G14: =IF(ISNUMBER(Лист3!$AO13),INDEX(Лист3!AM:AM,Лист3!$AO13),"") -> 1100 | M14: =IF(ISNUMBER(Лист3!$U13),INDEX(Лист3!AE:AE,Лист3!$U13),"") -> 

Sheet Лист5
A1: =TRANSPOSE(Лист4!B1:B15) -> Ф2 | C1: Яблоко1 | D1: Груша1 | G1: Лимон2 | J1: Киви3 | L1: Вишня4 | M1: Груша5 | O1: 0
A2: =TRANSPOSE(Лист4!C1:C15) -> Ф3 | C2: 10001а | D2: 20001а | E2: 30001в | F2: 40001с | G2: 50002а | H2: 60002в | I2: 70002с | J2: 80003а | K2: 90003в | L2: 100004а | M2: 20005а | N2: 30005в | O2: 0
A3: =TRANSPOSE(Лист4!D1:D15) -> Ф4 | C3: а | D3: а | E3: в | F3: с | G3: а | H3: в | I3: с | J3: а | K3: в | L3: а | M3: а | N3: в | O3: 0
A4: =TRANSPOSE(Лист4!E1:E15) -> Ф5 | C4: 0.04 | D4: 0.05 | E4: 0.06 | F4: 0.07 | G4: 0.08 | H4: 0.09 | I4: 0.1 | J4: 0.11 | K4: 0.12 | L4: 0.13 | M4: 0.14 | N4: 0.15 | O4: 0
A5: =TRANSPOSE(Лист4!F1:F15) -> Ф6 | C5: 0.2 | D5: 0.3 | E5: 0.4 | F5: 0.5 | G5: 0.6 | H5: 0.7 | I5: 0.8 | J5: 0.9 | K5: 0.1 | L5: 0.11 | M5: -0.42 | N5: -0.815 | O5: 0
A6: =TRANSPOSE(Лист4!G1:G15) -> Ф7 | C6: 1020 | D6: 1030 | E6: 1040 | F6: 1050 | G6: 1060 | H6: 1070 | I6: 1080 | J6: 1060 | K6: 1070 | L6: 1080 | M6: 1090 | N6: 1100 | O6: 0
A7: =TRANSPOSE(Лист4!A1:A15) -> Ф1 | C7: М1 | D7: М2 | E7: М3 | F7: М4 | G7: М5 | H7: М6 | I7: М7 | J7: М8 | K7: М9 | L7: М10 | M7: М11 | N7: М12 | O7: 0

Sheet Лист6
A1: =Лист5!A1:A1 -> Ф2 | B1: =Лист5!B1:B1 ->  | C1: =Лист5!C1:C1 -> Яблоко1 | D1: =Лист5!D1:D1 -> Груша1 | G1: =Лист5!G1:G1 -> Лимон2 | J1: =Лист5!J1:J1 -> Киви3 | K1: =Лист5!K1:K1 ->  | L1: =Лист5!L1:L1 -> Вишня4 | M1: =Лист5!M1:M1 -> Груша5 | N1: =Лист5!N1:N1 -> 
A2: =Лист5!A2:A2 -> Ф3 | B2: =Лист5!B2:B2 ->  | C2: =Лист5!C2:C2 -> 10001а | D2: =Лист5!D2:D2 -> 20001а | E2: =Лист5!E2:E2 -> 30001в | F2: =Лист5!F2:F2 -> 40001с | G2: =Лист5!G2:G2 -> 50002а | H2: =Лист5!H2:H2 -> 60002в | I2: =Лист5!I2:I2 -> 70002с | J2: =Лист5!J2:J2 -> 80003а | K2: =Лист5!K2:K2 -> 90003в | L2: =Лист5!L2:L2 -> 100004а | M2: =Лист5!M2:M2 -> 20005а | N2: =Лист5!N2:N2 -> 30005в
A3: =Лист5!A3:A3 -> Ф4 | B3: =Лист5!B3:B3 ->  | C3: =Лист5!C3:C3 -> а | D3: =Лист5!D3:D3 -> а | E3: =Лист5!E3:E3 -> в | F3: =Лист5!F3:F3 -> с | G3: =Лист5!G3:G3 -> а | H3: =Лист5!H3:H3 -> в | I3: =Лист5!I3:I3 -> с | J3: =Лист5!J3:J3 -> а | K3: =Лист5!K3:K3 -> в | L3: =Лист5!L3:L3 -> а | M3: =Лист5!M3:M3 -> а | N3: =Лист5!N3:N3 -> в
A4: =Лист5!A4:A4 -> Ф5 | B4: =Лист5!B4:B4 ->  | C4: =Лист5!C4:C4 -> 0.04 | D4: =Лист5!D4:D4 -> 0.05 | E4: =Лист5!E4:E4 -> 0.06 | F4: =Лист5!F4:F4 -> 0.07 | G4: =Лист5!G4:G4 -> 0.08 | H4: =Лист5!H4:H4 -> 0.09 | I4: =Лист5!I4:I4 -> 0.1 | J4: =Лист5!J4:J4 -> 0.11 | K4: =Лист5!K4:K4 -> 0.12 | L4: =Лист5!L4:L4 -> 0.13 | M4: =Лист5!M4:M4 -> 0.14 | N4: =Лист5!N4:N4 -> 0.15
A5: =Лист5!A5:A5 -> Ф6 | B5: =Лист5!B5:B5 ->  | C5: =Лист5!C5:C5 -> 0.2 | D5: =Лист5!D5:D5 -> 0.3 | E5: =Лист5!E5:E5 -> 0.4 | F5: =Лист5!F5:F5 -> 0.5 | G5: =Лист5!G5:G5 -> 0.6 | H5: =Лист5!H5:H5 -> 0.7 | I5: =Лист5!I5:I5 -> 0.8 | J5: =Лист5!J5:J5 -> 0.9 | K5: =Лист5!K5:K5 -> 0.1 | L5: =Лист5!L5:L5 -> 0.11 | M5: =Лист5!M5:M5 -> -0.42 | N5: =Лист5!N5:N5 -> -0.815
A6: =Лист5!A6:A6 -> Ф7 | B6: =Лист5!B6:B6 ->  | C6: =Лист5!C6:C6 -> 1020 | D6: =Лист5!D6:D6 -> 1030 | E6: =Лист5!E6:E6 -> 1040 | F6: =Лист5!F6:F6 -> 1050 | G6: =Лист5!G6:G6 -> 1060 | H6: =Лист5!H6:H6 -> 1070 | I6: =Лист5!I6:I6 -> 1080 | J6: =Лист5!J6:J6 -> 1060 | K6: =Лист5!K6:K6 -> 1070 | L6: =Лист5!L6:L6 -> 1080 | M6: =Лист5!M6:M6 -> 1090 | N6: =Лист5!N6:N6 -> 1100
